[Event "European Online Club-ch-D 2021"]
[Site "Online"]
[Date "2021.03.27"]
[Round "8.18"]
[White "Babazada, Khazar"]
[Black "Pelletier, Yannick"]
[Result "1-0"]
[ECO "B19"]
[WhiteElo "2409"]
[BlackElo "2581"]
[Annotator "ChessBase"]
[PlyCount "97"]
[EventDate "2021.03.27"]
[EventType "team-tourn"]
[EventCountry "NET"]
[SourceTitle "playchess.com"]
[Source "ChessBase"]
[SourceQuality "1"]
[TimeControl "900+5"]

1. e4 {[%emt 0:00:00]} c6 {[%emt 0:00:12]} 2. d4 {[%emt 0:00:03]} d5 {[%emt 0:00:00]} 3. Nc3 {[%emt 0:00:03]} dxe4 {[%emt 0:00:03]} 4. Nxe4 {[%emt 0:00:01]} Bf5 {[%emt 0:00:01]} 5. Ng3 {[%emt 0:00:01]} Bg6 {[%emt 0:00:02]} 6. Nf3 {[%emt 0:00:01]} Nd7 {[%emt 0:00:05]} 7. h4 {[%emt 0:00:01]} h6 {[%emt 0:00:01]} 8. h5 {[%emt 0:00:02]} Bh7 {[%emt 0:00:02]} 9. Bd3 {[%emt 0:00:01]} Bxd3 {[%emt 0:00:02]} 10. Qxd3 {[%emt 0:00:01]} e6 {[%emt 0:00:01]} 11. Bd2 {[%emt 0:00:01]} Ngf6 {[%emt 0:00:04]} 12. O-O-O {[%emt 0:00:04]} Be7 {[%emt 0:00:02]} 13. Ne4 {[%emt 0:00:12]} Nxe4 {[%emt 0:00:30]} 14. Qxe4 {[%emt 0:00:02]} Nf6 {[%emt 0:00:01]} 15. Qe2 {[%emt 0:00:01]} Qd5 {[%emt 0:00:30]} 16. c4 {[%emt 0:00:02]} Qe4 {[%emt 0:00:10]} 17. Qxe4 {[%emt 0:00:02]} Nxe4 {[%emt 0:00:02]} 18. Be1 {[%emt 0:00:01]} Bf6 {[%emt 0:04:12]} 19. Ne5 {[%emt 0:00:12]} c5 {[%emt 0:00:10]} 20. f3 {[%emt 0:00:58]} cxd4 {[%emt 0:00:05]} 21. Ng4 {[%emt 0:00:05]} Bg5+ {[%emt 0:01:57]} 22. Kc2 {[%emt 0:00:03]} Nf6 {[%emt 0:00:37]} 23. Rxd4 {[%emt 0:00:06]} Nxg4 {[%emt 0:00:07]} 24. Rxg4 {[%emt 0:00:01]} O-O-O {[%emt 0:00:43]} 25. Bc3 {[%emt 0:00:35]} f5 {[%emt 0:01:07]} 26. Rxg5 {[%emt 0:00:28]} hxg5 {[%emt 0:00:00]} 27. Bxg7 {[%emt 0:00:08]} Rh7 {[%emt 0:00:03]} 28. h6 {[%emt 0:00:06]} Rd7 {[%emt 0:02:49]} 29. Re1 {[%emt 0:00:18]} Rc7 {[%emt 0:00:20]} 30. Rxe6 {[%emt 0:01:10]} Rxc4+ {[%emt 0:00:03]} 31. Kd3 {[%emt 0:00:01]} Ra4 {[%emt 0:00:45]} 32. Rf6 {[%emt 0:00:48]} g4 {[%emt 0:00:56]} 33. Ke3 {[%emt 0:03:20]} gxf3 {[%emt 0:00:12]} 34. Kxf3 {[%emt 0:00:05]} Rh4 {[%emt 0:01:14]} 35. Rxf5 {[%emt 0:02:00]} R4xh6 {[%emt 0:00:04]} 36. Bxh6 {[%emt 0:00:02]} Rxh6 {[%emt 0:00:00]} 37. g4 {[%emt 0:00:10]} Rh7 {[%emt 0:00:26]} 38. Rd5 {[%emt 0:01:37]} Kc7 {[%emt 0:00:20]} 39. g5 {[%emt 0:00:19]} Rh1 {[%emt 0:00:04]} 40. Rd2 {[%emt 0:00:45]} Rg1 {[%emt 0:00:04]} 41. Rg2 {[%emt 0:00:13]} Rf1+ {[%emt 0:00:01]} 42. Ke4 {[%emt 0:00:20]} Kd6 {[%emt 0:00:17]} 43. g6 {[%emt 0:00:13]} Re1+ {[%emt 0:00:02]} 44. Kf5 {[%emt 0:00:17]} Rf1+ {[%emt 0:00:02]} 45. Kg5 {[%emt 0:00:40]} Ke7 {[%emt 0:00:01]} 46. Rg4 {[%emt 0:00:07]} Rh1 {[%emt 0:00:15]} 47. Rh4 {[%emt 0:00:46]} Rg1+ {[%emt 0:00:06]} 48. Kh6 {[%emt 0:00:05]} Kf8 {[%emt 0:00:05]} 49. Kh7 {[%emt 0:00:08]} 1-0

[Event "European Online Club-ch-D 2021"]
[Site "Online"]
[Date "2021.03.27"]
[Round "8.19"]
[White "Petkidis, Anthony"]
[Black "Samadov, Read"]
[Result "0-1"]
[ECO "B94"]
[WhiteElo "2401"]
[BlackElo "2332"]
[Annotator "NA"]
[PlyCount "58"]
[EventDate "2021.03.27"]
[EventType "team-tourn"]
[EventCountry "NET"]
[SourceTitle "playchess.com"]
[Source "ChessBase"]
[SourceQuality "1"]
[TimeControl "900+5"]

1. e4 {[%emt 0:00:00]} c5 {[%emt 0:00:04]} 2. Nf3 {[%emt 0:00:03]} d6 {[%emt 0:00:04]} 3. d4 {[%emt 0:00:02]} cxd4 {[%emt 0:00:02]} 4. Nxd4 {[%emt 0:00:00]} Nf6 {[%emt 0:00:02]} 5. Nc3 {[%emt 0:00:02]} a6 {[%emt 0:00:03]} 6. Bg5 {[%emt 0:00:06]} Nbd7 {[%emt 0:00:03]} 7. f4 {[%emt 0:00:09]} g6 {[%emt 0:00:33]} 8. Qe2 {[%emt 0:00:17]} e5 {[%emt 0:00:53]} 9. fxe5 {[%emt 0:00:36]} Nxe5 {[%emt 0:01:39]} 10. O-O-O {[%emt 0:00:37]} Bg7 {[%emt 0:00:37]} 11. Nf3 {[%emt 0:01:58]} Qa5 {[%emt 0:02:21]} 12. Bf4 {[%emt 0:00:52]} Nh5 {[%emt 0:00:47]} 13. Bd2 {[%emt 0:00:09]} O-O {[%emt 0:00:28]} 14. Kb1 {[%emt 0:00:06]} Qd8 {[%emt 0:00:39]} 15. Nxe5 {[%emt 0:00:19]} Bxe5 {[%emt 0:00:14]} 16. g4 {[%emt 0:02:24]} Nf6 {[%emt 0:00:23]} 17. h3 {[%emt 0:00:31]} Be6 {[%emt 0:00:10]} 18. Qf3 {[%emt 0:00:32]} Rc8 {[%emt 0:00:49]} 19. Be2 {[%emt 0:01:56]} Qb6 {[%emt 0:00:42]} 20. Ka1 {[%emt 0:00:57]} Qc6 {[%emt 0:01:26]} 21. Bd3 {[%emt 0:00:35]} b5 {[%emt 0:00:19]} 22. g5 {[%emt 0:00:10]} b4 {[%emt 0:00:17]} 23. Ne2 {[%emt 0:00:10]} Qa4 {[%emt 0:00:19]} 24. Nc1 {[%emt 0:00:14]} Rxc2 {[%emt 0:00:33]} 25. Bxc2 {[%emt 0:00:31]} Qxc2 {[%emt 0:00:02]} 26. Nd3 {[%emt 0:00:49]} Qc4 {[%emt 0:02:00]} 27. Nc1 {[%emt 0:01:24]} Nxe4 {[%emt 0:00:15]} 28. Be1 {[%emt 0:00:49]} Qc2 {[%emt 0:00:24]} 29. Nd3 {[%emt 0:00:03]} Nxg5 {[%emt 0:00:09]} 0-1

[Event "European Online Club-ch-D 2021"]
[Site "Online"]
[Date "2021.03.27"]
[Round "8.20"]
[White "Azadaliyev, Jahandar"]
[Black "Fischer, Daniel"]
[Result "0-1"]
[ECO "E46"]
[WhiteElo "1883"]
[BlackElo "2276"]
[Annotator "NA"]
[PlyCount "58"]
[EventDate "2021.03.27"]
[EventType "team-tourn"]
[EventCountry "NET"]
[SourceTitle "playchess.com"]
[Source "ChessBase"]
[SourceQuality "1"]
[TimeControl "900+5"]

1. d4 {[%emt 0:00:00]} Nf6 {[%emt 0:00:03]} 2. c4 {[%emt 0:00:02]} e6 {[%emt 0:00:01]} 3. Nc3 {[%emt 0:00:01]} Bb4 {[%emt 0:00:02]} 4. e3 {[%emt 0:00:01]} O-O {[%emt 0:00:02]} 5. Nge2 {[%emt 0:00:01]} Re8 {[%emt 0:00:02]} 6. a3 {[%emt 0:00:02]} Bf8 {[%emt 0:00:01]} 7. Ng3 {[%emt 0:00:03]} d5 {[%emt 0:00:02]} 8. Qc2 {[%emt 0:00:15]} b6 {[%emt 0:00:26]} 9. Bd3 {[%emt 0:00:20]} Bb7 {[%emt 0:00:05]} 10. O-O {[%emt 0:00:05]} c5 {[%emt 0:00:35]} 11. Rd1 {[%emt 0:00:49]} Nbd7 {[%emt 0:00:19]} 12. cxd5 {[%emt 0:00:30]} exd5 {[%emt 0:00:02]} 13. dxc5 {[%emt 0:01:20]} bxc5 {[%emt 0:00:02]} 14. b3 {[%emt 0:01:20]} Rc8 {[%emt 0:00:21]} 15. Bb2 {[%emt 0:00:46]} d4 {[%emt 0:01:43]} 16. Nce4 {[%emt 0:01:35]} Nxe4 {[%emt 0:00:03]} 17. Bxe4 {[%emt 0:01:05]} Bxe4 {[%emt 0:00:05]} 18. Nxe4 {[%emt 0:00:02]} Qe7 {[%emt 0:00:07]} 19. Ng3 {[%emt 0:00:28]} dxe3 {[%emt 0:01:00]} 20. fxe3 {[%emt 0:02:05]} Qxe3+ {[%emt 0:00:23]} 21. Kh1 {[%emt 0:00:06]} Ne5 {[%emt 0:01:41]} 22. Nf5 {[%emt 0:00:15]} Qg5 {[%emt 0:00:10]} 23. Rd5 {[%emt 0:00:54]} Ng4 {[%emt 0:02:16]} 24. Rf1 {[%emt 0:01:04]} Qf4 {[%emt 0:01:41]} 25. Ng3 {[%emt 0:00:19]} Qh6 {[%emt 0:01:14]} 26. Rh5 {[%emt 0:00:05]} Qg6 {[%emt 0:00:01]} 27. Qc3 {[%emt 0:00:27]} Re3 {[%emt 0:00:26]} 28. Qc4 {[%emt 0:02:25]} Rxg3 {[%emt 0:02:49]} 29. Rg5 {[%emt 0:00:35]} Nf2+ {[%emt 0:00:09]} 0-1

[Event "European Online Club-ch-D 2021"]
[Site "Online"]
[Date "2021.03.27"]
[Round "9.1"]
[White "Gadimbayli, Abdulla"]
[Black "Eren, Ataberk"]
[Result "1-0"]
[ECO "C47"]
[WhiteElo "2470"]
[BlackElo "2306"]
[Annotator "ChessBase"]
[PlyCount "71"]
[EventDate "2021.03.27"]
[EventType "team-tourn"]
[EventCountry "NET"]
[SourceTitle "playchess.com"]
[Source "ChessBase"]
[SourceQuality "1"]
[TimeControl "900+5"]

1. e4 {[%emt 0:00:00]} e5 {[%emt 0:00:03]} 2. Nf3 {[%emt 0:00:02]} Nc6 {[%emt 0:00:01]} 3. Nc3 {[%emt 0:00:01]} Nf6 {[%emt 0:00:02]} 4. d4 {[%emt 0:00:01]} exd4 {[%emt 0:00:00]} 5. Nxd4 {[%emt 0:00:01]} Bb4 {[%emt 0:00:02]} 6. Nxc6 {[%emt 0:00:01]} bxc6 {[%emt 0:00:01]} 7. Bd3 {[%emt 0:00:02]} d5 {[%emt 0:00:01]} 8. exd5 {[%emt 0:00:01]} cxd5 {[%emt 0:00:01]} 9. O-O {[%emt 0:00:01]} O-O {[%emt 0:00:01]} 10. Bg5 {[%emt 0:00:01]} c6 {[%emt 0:00:03]} 11. Qf3 {[%emt 0:00:01]} h6 {[%emt 0:00:01]} 12. Bxf6 {[%emt 0:00:01]} Qxf6 {[%emt 0:00:01]} 13. Qxf6 {[%emt 0:00:01]} gxf6 {[%emt 0:00:03]} 14. Ne2 {[%emt 0:00:02]} Re8 {[%emt 0:00:20]} 15. Ng3 {[%emt 0:00:06]} Re5 {[%emt 0:00:11]} 16. f4 {[%emt 0:01:24]} Re3 {[%emt 0:00:03]} 17. Kh1 {[%emt 0:01:23]} a5 {[%emt 0:00:27]} 18. Nh5 {[%emt 0:00:43]} Rb8 {[%emt 0:00:05]} 19. Nxf6+ {[%emt 0:00:45]} Kf8 {[%emt 0:00:03]} 20. f5 {[%emt 0:00:16]} Bc5 {[%emt 0:00:24]} 21. Ng4 {[%emt 0:01:00]} Re8 {[%emt 0:00:10]} 22. b3 {[%emt 0:02:06]} Bd4 {[%emt 0:00:28]} 23. Rad1 {[%emt 0:00:03]} h5 {[%emt 0:00:07]} 24. Nf2 {[%emt 0:00:02]} Bc3 {[%emt 0:00:19]} 25. Nh3 {[%emt 0:00:11]} Kg7 {[%emt 0:00:20]} 26. Rf3 {[%emt 0:00:18]} Bd7 {[%emt 0:01:20]} 27. Nf4 {[%emt 0:01:33]} Kh6 {[%emt 0:00:19]} 28. Rh3 {[%emt 0:01:11]} Kg5 {[%emt 0:00:09]} 29. Nxh5 {[%emt 0:00:15]} Rh8 {[%emt 0:00:04]} 30. Rg3+ {[%emt 0:00:01]} Kh4 {[%emt 0:02:09]} 31. Be2 {[%emt 0:00:43]} Be5 {[%emt 0:06:40]} 32. Rd4+ {[%emt 0:00:14]} Bxd4 {[%emt 0:00:28]} 33. Rg4+ {[%emt 0:00:02]} Kxh5 {[%emt 0:00:04]} 34. Rg6+ {[%emt 0:00:01]} Kh4 {[%emt 0:00:02]} 35. g3+ {[%emt 0:00:01]} Kh3 {[%emt 0:00:01]} 36. Bf1# {[%emt 0:00:02]} 1-0

[Event "European Online Club-ch-D 2021"]
[Site "Online"]
[Date "2021.03.27"]
[Round "9.2"]
[White "Ozkan, Ervin"]
[Black "Babazada, Khazar"]
[Result "1/2-1/2"]
[ECO "A48"]
[WhiteElo "2147"]
[BlackElo "2409"]
[Annotator "NA"]
[PlyCount "81"]
[EventDate "2021.03.27"]
[EventType "team-tourn"]
[EventCountry "NET"]
[SourceTitle "playchess.com"]
[Source "ChessBase"]
[SourceQuality "1"]
[TimeControl "900+5"]

1. d4 {[%emt 0:00:00]} Nf6 {[%emt 0:00:05]} 2. Nf3 {[%emt 0:00:03]} g6 {[%emt 0:00:02]} 3. Bf4 {[%emt 0:00:02]} Bg7 {[%emt 0:00:01]} 4. e3 {[%emt 0:00:01]} d6 {[%emt 0:00:01]} 5. h3 {[%emt 0:00:02]} O-O {[%emt 0:00:01]} 6. Be2 {[%emt 0:00:01]} b6 {[%emt 0:00:01]} 7. O-O {[%emt 0:00:02]} Bb7 {[%emt 0:00:01]} 8. Nbd2 {[%emt 0:00:43]} Nbd7 {[%emt 0:00:03]} 9. c3 {[%emt 0:00:04]} Re8 {[%emt 0:00:02]} 10. Bh2 {[%emt 0:00:02]} e5 {[%emt 0:00:05]} 11. a4 {[%emt 0:00:07]} a5 {[%emt 0:00:15]} 12. Qc2 {[%emt 0:00:47]} Qe7 {[%emt 0:00:05]} 13. Rfd1 {[%emt 0:00:10]} e4 {[%emt 0:00:19]} 14. Ne1 {[%emt 0:00:03]} h5 {[%emt 0:00:12]} 15. Nc4 {[%emt 0:00:53]} Nf8 {[%emt 0:01:15]} 16. Na3 {[%emt 0:00:11]} Ne6 {[%emt 0:00:18]} 17. Nb5 {[%emt 0:00:06]} g5 {[%emt 0:00:34]} 18. c4 {[%emt 0:01:41]} g4 {[%emt 0:00:20]} 19. hxg4 {[%emt 0:00:10]} Nxg4 {[%emt 0:00:11]} 20. Bxg4 {[%emt 0:00:49]} hxg4 {[%emt 0:00:02]} 21. c5 {[%emt 0:03:47]} bxc5 {[%emt 0:00:42]} 22. dxc5 {[%emt 0:00:05]} dxc5 {[%emt 0:00:32]} 23. Qe2 {[%emt 0:00:55]} f5 {[%emt 0:01:12]} 24. Nc2 {[%emt 0:00:03]} Red8 {[%emt 0:00:29]} 25. Nca3 {[%emt 0:00:08]} Rd3 {[%emt 0:00:32]} 26. Rxd3 {[%emt 0:01:20]} exd3 {[%emt 0:00:01]} 27. Qxd3 {[%emt 0:00:01]} Bxb2 {[%emt 0:00:39]} 28. Ra2 {[%emt 0:00:43]} Rd8 {[%emt 0:00:38]} 29. Qe2 {[%emt 0:01:19]} Bg7 {[%emt 0:00:29]} 30. Rd2 {[%emt 0:00:18]} Rxd2 {[%emt 0:00:58]} 31. Qxd2 {[%emt 0:00:02]} Ng5 {[%emt 0:00:15]} 32. Qd3 {[%emt 0:00:30]} Be4 {[%emt 0:00:21]} 33. Qc4+ {[%emt 0:00:06]} Kh7 {[%emt 0:00:03]} 34. Bxc7 {[%emt 0:00:30]} Qd7 {[%emt 0:00:17]} 35. Bd6 {[%emt 0:00:03]} Qe8 {[%emt 0:00:29]} 36. Nc7 {[%emt 0:01:16]} Qh5 {[%emt 0:00:28]} 37. Ne6 {[%emt 0:00:22]} Nxe6 {[%emt 0:02:54]} 38. Qxe6 {[%emt 0:00:03]} g3 {[%emt 0:00:16]} 39. Bxg3 {[%emt 0:00:18]} Qd1+ {[%emt 0:00:02]} 40. Kh2 {[%emt 0:00:02]} Qh5+ {[%emt 0:00:09]} 41. Kg1 {[%emt 0:00:03]} 1/2-1/2

[Event "European Online Club-ch-D 2021"]
[Site "Online"]
[Date "2021.03.27"]
[Round "9.3"]
[White "Eynullayev, Atilla"]
[Black "Korkmaz, Necmettin"]
[Result "0-1"]
[ECO "B01"]
[WhiteElo "2347"]
[BlackElo "2101"]
[Annotator "NA"]
[PlyCount "84"]
[EventDate "2021.03.27"]
[EventType "team-tourn"]
[EventCountry "NET"]
[SourceTitle "playchess.com"]
[Source "ChessBase"]
[SourceQuality "1"]
[TimeControl "900+5"]

1. e4 {[%emt 0:00:00]} d5 {[%emt 0:00:08]} 2. exd5 {[%emt 0:00:02]} Nf6 {[%emt 0:00:03]} 3. Nf3 {[%emt 0:00:02]} Bg4 {[%emt 0:00:07]} 4. h3 {[%emt 0:00:04]} Bxf3 {[%emt 0:00:38]} 5. Qxf3 {[%emt 0:00:02]} Qxd5 {[%emt 0:00:01]} 6. Qxd5 {[%emt 0:00:04]} Nxd5 {[%emt 0:00:02]} 7. a3 {[%emt 0:00:03]} e5 {[%emt 0:00:13]} 8. b3 {[%emt 0:00:29]} a6 {[%emt 0:00:05]} 9. Bb2 {[%emt 0:00:01]} Nc6 {[%emt 0:00:03]} 10. g3 {[%emt 0:00:05]} Nd4 {[%emt 0:00:13]} 11. Kd1 {[%emt 0:00:40]} O-O-O {[%emt 0:00:09]} 12. Bg2 {[%emt 0:00:04]} Bc5 {[%emt 0:00:14]} 13. Re1 {[%emt 0:00:19]} Rhe8 {[%emt 0:00:13]} 14. d3 {[%emt 0:01:15]} f5 {[%emt 0:00:10]} 15. Nd2 {[%emt 0:00:09]} Nc6 {[%emt 0:01:24]} 16. Re2 {[%emt 0:00:38]} Nd4 {[%emt 0:00:11]} 17. Re1 {[%emt 0:00:08]} Nc6 {[%emt 0:00:02]} 18. c4 {[%emt 0:04:34]} Nf6 {[%emt 0:00:57]} 19. Bxc6 {[%emt 0:00:56]} bxc6 {[%emt 0:00:04]} 20. Rxe5 {[%emt 0:00:25]} Bxf2 {[%emt 0:01:33]} 21. Rxf5 {[%emt 0:01:30]} Bxg3 {[%emt 0:00:22]} 22. Rf3 {[%emt 0:01:23]} Bh4 {[%emt 0:00:10]} 23. Kc2 {[%emt 0:00:10]} Re2 {[%emt 0:00:03]} 24. Rg1 {[%emt 0:00:12]} Ne4 {[%emt 0:01:11]} 25. Bc1 {[%emt 0:00:24]} Bg5 {[%emt 0:01:29]} 26. Rd1 {[%emt 0:01:39]} Nf2 {[%emt 0:00:16]} 27. Rf1 {[%emt 0:00:44]} Bxd2 {[%emt 0:01:13]} 28. Bxd2 {[%emt 0:00:23]} Ne4 {[%emt 0:00:05]} 29. Rd1 {[%emt 0:00:06]} Ng5 {[%emt 0:00:56]} 30. Re3 {[%emt 0:00:35]} Rh2 {[%emt 0:00:06]} 31. Rg1 {[%emt 0:00:05]} h6 {[%emt 0:00:06]} 32. Kc3 {[%emt 0:00:16]} Rd7 {[%emt 0:00:04]} 33. Be1 {[%emt 0:00:04]} Nxh3 {[%emt 0:00:11]} 34. Rg6 {[%emt 0:00:09]} Kb7 {[%emt 0:00:46]} 35. Bg3 {[%emt 0:00:05]} Ra2 {[%emt 0:00:11]} 36. Bxc7 {[%emt 0:00:06]} Nf2 {[%emt 0:00:14]} 37. Reg3 {[%emt 0:00:03]} c5 {[%emt 0:00:11]} 38. b4 {[%emt 0:00:05]} Rxa3+ {[%emt 0:00:20]} 39. Kb2 {[%emt 0:00:03]} cxb4 {[%emt 0:00:06]} 40. Rxg7 {[%emt 0:00:10]} Nxd3+ {[%emt 0:00:09]} 41. Kc2 {[%emt 0:00:03]} Rc3+ {[%emt 0:00:07]} 42. Kb1 {[%emt 0:00:02]} Kxc7 {[%emt 0:00:02]} 0-1

[Event "European Online Club-ch-D 2021"]
[Site "Online"]
[Date "2021.03.27"]
[Round "9.4"]
[White "Erdogmus, Yagiz Kaan"]
[Black "Samadov, Read"]
[Result "1/2-1/2"]
[ECO "B52"]
[WhiteElo "1955"]
[BlackElo "2332"]
[Annotator "NA"]
[PlyCount "144"]
[EventDate "2021.03.27"]
[EventType "team-tourn"]
[EventCountry "NET"]
[SourceTitle "playchess.com"]
[Source "ChessBase"]
[SourceQuality "1"]
[TimeControl "900+5"]

1. e4 {[%emt 0:00:00]} c5 {[%emt 0:00:03]} 2. Nf3 {[%emt 0:00:03]} d6 {[%emt 0:00:02]} 3. Bb5+ {[%emt 0:00:02]} Bd7 {[%emt 0:00:03]} 4. Bxd7+ {[%emt 0:00:02]} Qxd7 {[%emt 0:00:02]} 5. O-O {[%emt 0:00:04]} Nc6 {[%emt 0:00:04]} 6. c3 {[%emt 0:00:03]} Nf6 {[%emt 0:00:04]} 7. d4 {[%emt 0:00:04]} Nxe4 {[%emt 0:00:04]} 8. d5 {[%emt 0:00:03]} Ne5 {[%emt 0:00:01]} 9. Nxe5 {[%emt 0:00:02]} dxe5 {[%emt 0:00:01]} 10. Re1 {[%emt 0:00:02]} Nd6 {[%emt 0:00:03]} 11. Rxe5 {[%emt 0:00:03]} g6 {[%emt 0:00:06]} 12. Bf4 {[%emt 0:00:27]} Bg7 {[%emt 0:00:43]} 13. Re1 {[%emt 0:00:40]} O-O {[%emt 0:00:23]} 14. Nd2 {[%emt 0:00:28]} Rad8 {[%emt 0:01:08]} 15. Qb3 {[%emt 0:04:31]} Nf5 {[%emt 0:01:28]} 16. Nf3 {[%emt 0:02:17]} Rfe8 {[%emt 0:02:39]} 17. Rad1 {[%emt 0:00:13]} Nd6 {[%emt 0:01:35]} 18. Bxd6 {[%emt 0:02:33]} exd6 {[%emt 0:00:08]} 19. a4 {[%emt 0:00:07]} Kf8 {[%emt 0:01:44]} 20. Nd2 {[%emt 0:01:00]} b6 {[%emt 0:01:12]} 21. Nc4 {[%emt 0:00:41]} Rxe1+ {[%emt 0:00:37]} 22. Rxe1 {[%emt 0:00:04]} Qf5 {[%emt 0:00:09]} 23. a5 {[%emt 0:01:05]} Qxd5 {[%emt 0:00:17]} 24. axb6 {[%emt 0:00:03]} axb6 {[%emt 0:00:02]} 25. Qxb6 {[%emt 0:00:34]} Bf6 {[%emt 0:00:12]} 26. Ne3 {[%emt 0:00:32]} Qe6 {[%emt 0:00:45]} 27. Rd1 {[%emt 0:00:18]} Kg7 {[%emt 0:00:24]} 28. h3 {[%emt 0:00:44]} Bg5 {[%emt 0:00:38]} 29. b4 {[%emt 0:00:27]} cxb4 {[%emt 0:01:12]} 30. cxb4 {[%emt 0:00:02]} Rc8 {[%emt 0:00:16]} 31. Qd4+ {[%emt 0:00:06]} Bf6 {[%emt 0:00:24]} 32. Qd5 {[%emt 0:00:10]} Qe8 {[%emt 0:00:10]} 33. g3 {[%emt 0:00:06]} Rb8 {[%emt 0:00:06]} 34. Qc4 {[%emt 0:00:06]} Qa4 {[%emt 0:00:11]} 35. Rxd6 {[%emt 0:00:05]} Rxb4 {[%emt 0:00:06]} 36. Qd3 {[%emt 0:00:02]} Qa1+ {[%emt 0:00:13]} 37. Kg2 {[%emt 0:00:03]} Rd4 {[%emt 0:00:30]} 38. Rxd4 {[%emt 0:00:03]} Bxd4 {[%emt 0:00:03]} 39. Nc4 {[%emt 0:00:08]} Bf6 {[%emt 0:00:05]} 40. Nd6 {[%emt 0:00:02]} Qe5 {[%emt 0:00:06]} 41. Ne4 {[%emt 0:00:03]} Be7 {[%emt 0:00:06]} 42. Qf3 {[%emt 0:00:04]} h5 {[%emt 0:00:04]} 43. h4 {[%emt 0:00:09]} Qd4 {[%emt 0:00:06]} 44. Kf1 {[%emt 0:00:06]} Qa1+ {[%emt 0:00:07]} 45. Kg2 {[%emt 0:00:02]} Qe5 {[%emt 0:00:02]} 46. Nd2 {[%emt 0:00:05]} Bc5 {[%emt 0:00:04]} 47. Ne4 {[%emt 0:00:03]} Be7 {[%emt 0:00:05]} 48. Qc3 {[%emt 0:00:03]} Qxc3 {[%emt 0:00:04]} 49. Nxc3 {[%emt 0:00:02]} Bf6 {[%emt 0:00:01]} 50. Ne4 {[%emt 0:00:02]} Bd4 {[%emt 0:00:02]} 51. Kf3 {[%emt 0:00:01]} Kf8 {[%emt 0:00:02]} 52. Ng5 {[%emt 0:00:11]} Ke7 {[%emt 0:00:04]} 53. Nh3 {[%emt 0:00:01]} Kf6 {[%emt 0:00:04]} 54. Ng5 {[%emt 0:00:02]} Bb6 {[%emt 0:00:03]} 55. Ne4+ {[%emt 0:00:03]} Ke5 {[%emt 0:00:05]} 56. Ng5 {[%emt 0:00:04]} Kf6 {[%emt 0:00:04]} 57. Ne4+ {[%emt 0:00:04]} Ke7 {[%emt 0:00:02]} 58. Nc3 {[%emt 0:00:06]} Ke6 {[%emt 0:00:02]} 59. Ne4 {[%emt 0:00:02]} f6 {[%emt 0:00:02]} 60. Nd2 {[%emt 0:00:03]} Kf5 {[%emt 0:00:04]} 61. Kg2 {[%emt 0:00:19]} Bd4 {[%emt 0:00:09]} 62. Kf3 {[%emt 0:00:07]} g5 {[%emt 0:00:06]} 63. hxg5 {[%emt 0:00:02]} fxg5 {[%emt 0:00:02]} 64. Kg2 {[%emt 0:00:01]} Ba7 {[%emt 0:00:03]} 65. f3 {[%emt 0:00:08]} Be3 {[%emt 0:00:04]} 66. Nc4 {[%emt 0:00:04]} Bc5 {[%emt 0:00:02]} 67. Nd2 {[%emt 0:00:03]} g4 {[%emt 0:00:02]} 68. fxg4+ {[%emt 0:00:03]} Kxg4 {[%emt 0:00:03]} 69. Ne4 {[%emt 0:00:04]} Bd4 {[%emt 0:00:02]} 70. Nf2+ {[%emt 0:00:05]} Bxf2 {[%emt 0:00:03]} 71. Kxf2 {[%emt 0:00:02]} h4 {[%emt 0:00:01]} 72. gxh4 {[%emt 0:00:02]} Kxh4 {[%emt 0:00:01]} 1/2-1/2

[Event "European Online Club-ch-D 2021"]
[Site "Online"]
[Date "2021.03.27"]
[Round "9.5"]
[White "Straka, Vojtech"]
[Black "Bauer, Christian"]
[Result "0-1"]
[ECO "A27"]
[WhiteElo "2417"]
[BlackElo "2639"]
[Annotator "ChessBase"]
[PlyCount "76"]
[EventDate "2021.03.27"]
[EventType "team-tourn"]
[EventCountry "NET"]
[SourceTitle "playchess.com"]
[Source "ChessBase"]
[SourceQuality "1"]
[TimeControl "900+5"]

1. c4 {[%emt 0:00:00]} e5 {[%emt 0:00:04]} 2. Nc3 {[%emt 0:00:03]} Nc6 {[%emt 0:00:01]} 3. Nf3 {[%emt 0:00:05]} f5 {[%emt 0:00:02]} 4. g3 {[%emt 0:00:04]} Nf6 {[%emt 0:00:16]} 5. d4 {[%emt 0:00:03]} e4 {[%emt 0:00:04]} 6. Nh4 {[%emt 0:00:02]} g6 {[%emt 0:00:35]} 7. Bg5 {[%emt 0:00:48]} Be7 {[%emt 0:00:32]} 8. e3 {[%emt 0:00:17]} d6 {[%emt 0:00:25]} 9. Ng2 {[%emt 0:00:21]} Ng4 {[%emt 0:00:42]} 10. Bxe7 {[%emt 0:00:14]} Nxe7 {[%emt 0:00:02]} 11. Be2 {[%emt 0:00:16]} Nf6 {[%emt 0:00:03]} 12. h4 {[%emt 0:00:10]} c6 {[%emt 0:00:28]} 13. Nf4 {[%emt 0:00:16]} a6 {[%emt 0:00:13]} 14. b4 {[%emt 0:01:06]} Kf7 {[%emt 0:00:10]} 15. Qb3 {[%emt 0:00:20]} h6 {[%emt 0:00:37]} 16. d5 {[%emt 0:03:23]} Kg7 {[%emt 0:03:05]} 17. Rd1 {[%emt 0:00:12]} a5 {[%emt 0:01:04]} 18. a3 {[%emt 0:00:31]} axb4 {[%emt 0:00:08]} 19. axb4 {[%emt 0:00:02]} cxd5 {[%emt 0:01:12]} 20. O-O {[%emt 0:01:38]} dxc4 {[%emt 0:00:32]} 21. Qxc4 {[%emt 0:00:05]} d5 {[%emt 0:00:57]} 22. Qb5 {[%emt 0:02:33]} Qd7 {[%emt 0:01:29]} 23. Nfxd5 {[%emt 0:00:47]} Qxb5 {[%emt 0:00:19]} 24. Bxb5 {[%emt 0:00:02]} Nexd5 {[%emt 0:00:21]} 25. Nxd5 {[%emt 0:00:02]} g5 {[%emt 0:02:14]} 26. hxg5 {[%emt 0:01:01]} hxg5 {[%emt 0:00:02]} 27. Nb6 {[%emt 0:00:07]} Ra2 {[%emt 0:00:18]} 28. Ra1 {[%emt 0:01:10]} Rxa1 {[%emt 0:00:10]} 29. Rxa1 {[%emt 0:00:02]} Be6 {[%emt 0:00:01]} 30. Ra7 {[%emt 0:00:07]} Ng4 {[%emt 0:00:27]} 31. Rxb7+ {[%emt 0:00:04]} Kf6 {[%emt 0:00:01]} 32. Rc7 {[%emt 0:00:23]} Ne5 {[%emt 0:00:27]} 33. Be2 {[%emt 0:00:11]} Rb8 {[%emt 0:00:03]} 34. Nc4 {[%emt 0:00:11]} Bxc4 {[%emt 0:00:03]} 35. Bxc4 {[%emt 0:00:02]} Nf3+ {[%emt 0:00:07]} 36. Kf1 {[%emt 0:00:26]} Rxb4 {[%emt 0:00:00]} 37. Rc6+ {[%emt 0:00:03]} Ke7 {[%emt 0:00:07]} 38. Ke2 {[%emt 0:00:34]} Rb1 {[%emt 0:00:17]} 0-1